[Event "4th Tata Steel India Rapid Open 2022"]
[Site "Kolkota"]
[Date "2022.11.29"]
[Round "3.1"]
[White "Vidit, Santosh Gujrathi"]
[Black "Nihal Sarin"]
[Result "0-1"]
[ECO "C56"]
[WhiteElo "2724"]
[BlackElo "2670"]
[Annotator "TA"]
[PlyCount "76"]
[EventDate "2022.11.29"]
[EventType "tourn"]
[EventCountry "IND"]
[SourceTitle "playchess.com"]
[Source "ChessBase"]
[SourceQuality "1"]
[TimeControl "900+10"]

{[%evp 9,76,18,18,6,8,10,12,0,12,-15,0,-26,-12,-16,-16,-39,-25,-31,-43,-29,-29,-44,-32,-25,-39,-100,-89,-173,-179,-225,-227,-227,-221,-205,-211,-333,-332,-572,-572,-560,-284,-384,-404,-771,-781,-777,-776,-871,-825,-779,-597,-564,-605,-587,-579,-1402,-1371,-1385,-1372,-2460,-2387,-29978,-29979,-29979,-29980,-29979,-29980,-6091,-1454]} 1. e4 {[%emt 0:00:05]} e5 {[%emt 0:00:01]} 2. Nf3 {[%emt 0:00:03]} Nc6 {[%emt 0:00:01]} 3. Bc4 {[%emt 0:00:09]} d6 {[%emt 0:00:01]} 4. d4 {[%emt 0:00:27]} Nf6 {[%emt 0:00:13]} 5. Nc3 {[%emt 0:00:07]} Bg4 {[%emt 0:00:17]} 6. d5 {[%emt 0:01:56] C56: Two Knights: 4 d4 exd4 5 0-0 Nxe4.} (6. Bb5 {looks sharper.} exd4 7. Qxd4 Be7 8. e5) 6... Nd4 {[%emt 0:00:24]} 7. Be3 {[%emt 0:00:06]} Nxf3+ {[%emt 0:01:21]} 8. gxf3 {[%emt 0:00:02] The position is equal.} Bd7 {[%emt 0:00:01]} 9. Rg1 {[%emt 0:01:55] [#]} g6 $146 {[%emt 0:00:46]} ({Predecessor:} 9... Nh5 10. Qd2 a6 11. O-O-O b5 12. Bd3 h6 13. f4 Be7 14. f5 Kf8 15. Qe2 Nf4 16. Bxf4 exf4 {1-0 (64) Brendel,B (2086)-Madison,S (1853) Helsingor 2015}) 10. f4 {[%emt 0:00:16]} exf4 {[%emt 0:00:57]} 11. Bxf4 {[%emt 0:00:02]} Bg7 {[%emt 0:00:01]} 12. Qf3 {[%emt 0:00:48]} Qe7 {[%emt 0:02:13][%cal Of6e4] ...Nxe4! is the strong threat.} 13. O-O-O {[%emt 0:00:05][%cal Oe4e5]} O-O {[%emt 0:00:12]} 14. Rde1 $1 {[%emt 0:00:27]} Nh5 {[%emt 0:00:16] White must now prevent ...Qf6.} 15. Bg5 {[%emt 0:00:29] Prevents Qf6.} Qe5 {[%emt 0:00:16]} 16. Qe3 {[%emt 0:01:52] Against b5} f5 {[%emt 0:01:52][%cal Bf7f5,Bf5f4,Bf4f3][%mdl 32]} 17. Be2 {[%emt 0:01:31] [#]} ({White should play} 17. f4 $15 Qd4 18. Qxd4 Bxd4 19. e5 $1) 17... f4 $1 $17 {[%emt 0:00:20] White is on the road to losing.} (17... Qxh2 18. Rh1 Qe5 19. f4 $14) (17... fxe4 18. Bxh5 gxh5 19. Bh6 $16) 18. Qd3 {[%emt 0:00:11] [#]} (18. Qd2 $17 f3 19. Bd3) 18... f3 $1 $36 {[%emt 0:00:17][%mdl 2048] Keeping White busy.} 19. Bd1 {[%emt 0:01:10]} (19. Bxf3 {keeps fighting.} Nf4 20. Bxf4 Qxf4+ 21. Re3) 19... Nf4 {[%emt 0:00:47]} (19... Qxh2 20. Qe3 $15) 20. Bxf4 {[%emt 0:01:07]} Qxf4+ {[%emt 0:00:09]} (20... Rxf4 21. Rg3 $17 (21. Bxf3 Raf8 $17)) 21. Kb1 {[%emt 0:00:01]} Qxh2 {[%emt 0:00:17]} 22. Rgf1 {[%emt 0:01:48]} (22. Bxf3 {might work better.} Qxf2 23. Be2) 22... Bh3 {[%emt 0:02:52] A strong pair of Bishops.} 23. Rh1 {[%emt 0:00:01]} (23. Nb5 Bxf1 24. Rxf1) 23... Qxf2 {[%emt 0:00:01]} 24. e5 {[%emt 0:00:01]} Bf5 {[%emt 0:00:48]} ({Worse is} 24... Bxe5 25. Rxe5 dxe5 26. Rxh3 $15) (24... dxe5 25. Ne4 Qg2 26. Reg1 $11) 25. Qc4 {[%emt 0:00:25]} Bxe5 {[%emt 0:02:58]} (25... dxe5 $2 {perishes.} 26. d6+ Rf7 27. Rhf1 $19) 26. Rxe5 {[%emt 0:00:11]} (26. Rhf1 $142 Qd2 27. Ne4 Bxe4 28. Rxe4) 26... dxe5 {[%emt 0:00:02]} 27. d6+ {[%emt 0:00:02]} Kh8 {[%emt 0:01:02]} 28. Qxc7 {[%emt 0:00:02]} h5 {[%emt 0:00:03] Strongly threatening ...Qg2.} 29. d7 {[%emt 0:01:28]} Qd4 {[%emt 0:00:05]} 30. Bxf3 {[%emt 0:00:05]} Rad8 {[%emt 0:00:50]} ({Not} 30... Bxc2+ 31. Kxc2 Rxf3 32. Rd1 Rf2+ 33. Kb3 Qb6+ 34. Qxb6 axb6 35. d8=Q+ Rxd8 36. Rxd8+ Kg7 37. Rd7+ Rf7 38. Rd1 $11) 31. Qxb7 {[%emt 0:02:13]} Rxd7 {[%emt 0:00:02]} 32. Qb5 {[%emt 0:00:03] [#]} Bxc2+ $1 {[%emt 0:00:19]} 33. Kxc2 {[%emt 0:00:02]} Rxf3 {[%emt 0:00:01]} 34. Qc6 {[%emt 0:00:34]} Rf2+ {[%emt 0:00:21]} 35. Kb1 {[%emt 0:00:01]} Qd3+ {[%emt 0:00:09]} 36. Ka1 {[%emt 0:00:01]} Rf1+ {[%emt 0:00:11]} 37. Rxf1 {[%emt 0:00:03]} Qxf1+ {[%emt 0:00:02]} 38. Nb1 {[%emt 0:00:00]} Qf5 {[%emt 0:00:14] Weighted Error Value: White=0.90/Black=0.26 (precise)} 0-1

[Event "4th Tata Steel India Rapid Open 2022"]
[Site "Kolkota"]
[Date "2022.11.29"]
[Round "3.2"]
[White "Gukesh D"]
[Black "Erigaisi Arjun"]
[Result "1/2-1/2"]
[ECO "D27"]
[WhiteElo "2725"]
[BlackElo "2718"]
[Annotator "TA"]
[PlyCount "155"]
[EventDate "2022.11.29"]
[EventType "tourn"]
[EventCountry "IND"]
[SourceTitle "playchess.com"]
[Source "ChessBase"]
[SourceQuality "1"]
[TimeControl "900+10"]

{[%evp 19,155,17,23,30,25,18,23,24,25,10,28,14,22,0,0,0,50,46,50,-13,-13,-10,-10,-81,-80,-76,0,0,5,6,15,10,26,26,33,0,4,0,8,0,0,-20,-20,-71,-65,-63,-72,-70,-70,-70,-76,-70,-70,-70,-87,-83,-31,-31,-19,-31,-10,-10,-10,-116,-80,-255,-273,-489,-489,-354,-467,-426,-229,-229,-181,-188,-181,-181,-206,-181,-166,-166,-166,-166,-166,-166,-166,-166,-166,-166,-166,-166,-166,-166,-166,-166,-166,-166,-166,-166,-166,-166,-166,-166,-166,-166,-166,-166,-166,-166,-166,-166,-131,-131,-131,-131,-131,-131,-131,-131,-131,-131,-131,-131,-131,-131,-131,-131,0,-64,-64,-64,0,-64,-64,-64,0,-64]} 1. d4 {[%emt 0:00:08] Nielsen,Peter Heine} d5 {[%emt 0:00:02]} 2. c4 {[%emt 0:00:01]} e6 {[%emt 0:00:02]} 3. Nf3 {[%emt 0:00:06]} Nf6 {[%emt 0:00:03]} 4. Nc3 {[%emt 0:00:02]} c5 {[%emt 0:00:02]} 5. e3 {[%emt 0:00:03]} dxc4 {[%emt 0:00:03]} 6. Bxc4 {[%emt 0:00:02]} a6 {[%emt 0:00:02]} 7. O-O {[%emt 0:01:14]} b5 {[%emt 0:00:02]} 8. Be2 {[%emt 0:00:03]} Bb7 {[%emt 0:00:03]} 9. dxc5 {[%emt 0:00:04]} Bxc5 {[%emt 0:00:04]} 10. Qxd8+ {[%emt 0:00:03]} Kxd8 {[%emt 0:00:03]} 11. Nd2 {[%emt 0:00:01][%cal Bf3d2,Bd2b3,Bb3c5][%mdl 32] D27: Queen's Gambit Accepted: Classical main line: 7 e4!? and 7 a4.} Ke7 {[%emt 0:00:02]} 12. Nb3 {[%emt 0:00:02]} Nbd7 {[%emt 0:00:02]} 13. Rd1 {[%emt 0:00:47] White has an edge.} Bb6 {[%emt 0:02:31] Prevents Na5.} 14. a4 {[%emt 0:00:24][%cal Ba2a4,Ba4a5][%mdl 32]} b4 {[%emt 0:00:03]} 15. a5 $1 {[%emt 0:00:03] [#]} Bc7 $146 {[%emt 0:00:48]} ({Predecessor:} 15... Ba7 16. Na4 Bd5 17. Nd4 Rhb8 18. Bd2 Nc5 19. Nxc5 Bxc5 20. Rac1 Bxd4 21. exd4 Kd7 {1-0 (39) Carlsen,M (2847)-So,W (2770) chess24.com INT 2021 CBM 202 Extra [Nielsen,Peter Heine]}) 16. Na4 {[%emt 0:00:14]} Bd5 $1 $36 {[%emt 0:01:32][%mdl 2048] Against f3. White is under pressure.} 17. Nbc5 {[%emt 0:00:49]} Bxa5 {[%emt 0:01:20]} (17... Bd6 $11 18. Nxd7 Nxd7) 18. Bd2 {[%emt 0:02:08]} (18. e4 {feels hotter.} Bc6 19. Bf4 Rhc8 20. Bxa6 Bxa4 21. Bd6+) 18... Rhc8 {[%emt 0:02:12] [#]} 19. Rdc1 {[%emt 0:06:07]} (19. f3 $1 $14) 19... Ne4 $11 {[%emt 0:02:13]} 20. Nxe4 {[%emt 0:03:25]} Bxe4 {[%emt 0:00:04]} 21. Rxc8 {[%emt 0:01:22]} (21. b3 $11 {keeps the balance.}) 21... Rxc8 $17 {[%emt 0:00:02]} 22. Bxa6 {[%emt 0:00:02]} Rb8 {[%emt 0:00:24]} ({Better is} 22... Rc2 $17 23. Be1 Ne5) 23. Rc1 $11 {[%emt 0:00:48]} Kd6 {[%emt 0:00:04]} 24. b3 {[%emt 0:00:08]} Bd5 {[%emt 0:00:20]} 25. Bc4 {[%emt 0:00:22]} Bxc4 {[%emt 0:00:56]} 26. Rxc4 {[%emt 0:00:01]} Ne5 {[%emt 0:00:03]} 27. Rc5 {[%emt 0:00:22]} Bd8 {[%emt 0:01:06]} 28. Kf1 {[%emt 0:00:09]} Be7 {[%emt 0:01:21]} 29. Ke2 {[%emt 0:00:16]} Nc6 {[%emt 0:00:12]} 30. Kd1 {[%emt 0:00:23]} Kd7 {[%emt 0:01:04]} 31. Rc4 {[%emt 0:00:17] [#]} (31. Rh5 $11) 31... Na5 $1 $17 {[%emt 0:00:53][%csl LRb3,LRc4]} 32. Nc5+ {[%emt 0:00:21]} Bxc5 {[%emt 0:01:03]} 33. Rxc5 {[%emt 0:00:01]} Nxb3 {[%emt 0:00:02]} 34. Rc4 {[%emt 0:00:01]} Nxd2 {[%emt 0:00:07]} 35. Kxd2 $15 {[%emt 0:00:01][%mdl 4096] Endgame KR-KR} b3 {[%emt 0:00:21] ...b2 is the strong threat.} 36. Kc1 {[%emt 0:00:06]} Ra8 {[%emt 0:00:07] White must now prevent ...Ra2.} 37. Rf4 {[%emt 0:00:15] [#]} f5 {[%emt 0:00:03]} (37... Ke7 $1 $17 {Hoping for ...Ra2.} 38. Kb2 Ra2+ 39. Kxb3 Re2) 38. Kb2 {[%emt 0:00:05]} g5 {[%emt 0:00:50]} (38... Ra2+ {simplifies} 39. Kxb3 Re2 40. Kc3 Ke7) 39. Rd4+ {[%emt 0:00:04]} Ke7 {[%emt 0:00:02]} (39... Kc6 $5 {[%cal Ra8a2]} 40. Kxb3 Ra1 $15) 40. Kxb3 {[%emt 0:00:08]} Ra1 {[%emt 0:00:02]} 41. f4 {[%emt 0:00:43]} (41. h4 $11) 41... g4 {[%emt 0:00:30] Threatens to win with ...Rg1.} 42. Rd2 $2 {[%emt 0:00:13]} (42. e4 $17) 42... Re1 $19 {[%emt 0:00:07]} 43. Kc2 $2 {[%emt 0:00:10]} (43. Rf2) 43... Rxe3 {[%emt 0:00:04]} 44. Kd1 {[%emt 0:00:12]} h5 {[%emt 0:00:06]} 45. Ra2 {[%emt 0:00:03]} h4 {[%emt 0:00:25]} (45... Re4 $142 46. g3 Re3) 46. Kd2 {[%emt 0:00:02]} Re4 {[%emt 0:00:26]} 47. g3 {[%emt 0:00:01]} Kf6 {[%emt 0:00:10]} 48. Rb2 {[%emt 0:00:10]} Ra4 {[%emt 0:00:14]} 49. Ke3 {[%emt 0:00:09]} Ra3+ {[%emt 0:00:24]} 50. Kf2 {[%emt 0:00:02]} Rf3+ {[%emt 0:00:10]} 51. Kg2 {[%emt 0:00:01]} h3+ {[%emt 0:00:12]} 52. Kg1 {[%emt 0:00:02]} Ke7 {[%emt 0:00:05]} 53. Rf2 {[%emt 0:00:34]} Rd3 {[%emt 0:00:09]} 54. Rf1 {[%emt 0:00:15]} Kd6 {[%emt 0:00:03]} 55. Re1 {[%emt 0:00:02]} Rd2 {[%emt 0:00:04]} 56. Ra1 {[%emt 0:00:03]} Kd5 {[%emt 0:00:08]} 57. Rb1 {[%emt 0:00:01]} Rg2+ {[%emt 0:00:07]} 58. Kh1 {[%emt 0:00:02]} Re2 {[%emt 0:00:02]} 59. Kg1 {[%emt 0:00:01]} Kd4 {[%emt 0:00:06]} 60. Ra1 {[%emt 0:00:02]} Kc3 {[%emt 0:00:04]} 61. Rb1 {[%emt 0:00:13]} Kd3 {[%emt 0:00:25]} 62. Ra1 {[%emt 0:00:02]} Ke4 {[%emt 0:00:07]} 63. Ra4+ {[%emt 0:00:06]} Kd5 {[%emt 0:00:12]} 64. Ra5+ {[%emt 0:00:02]} Kd6 {[%emt 0:00:07] And now ...Re1+ would win.} 65. Ra1 {[%emt 0:00:01] Inhibits Re1+.} e5 {[%emt 0:00:03]} 66. fxe5+ {[%emt 0:00:07]} Kxe5 {[%emt 0:00:03]} 67. Rb1 {[%emt 0:00:32]} Ke4 {[%emt 0:00:13]} 68. Rf1 {[%emt 0:00:03]} Rg2+ {[%emt 0:00:10]} 69. Kh1 {[%emt 0:00:01]} Ra2 {[%emt 0:00:02]} 70. Kg1 {[%emt 0:00:02]} Ke5 {[%emt 0:00:06]} 71. Re1+ {[%emt 0:00:02]} Kf6 {[%emt 0:00:02]} 72. Rb1 {[%emt 0:00:02]} Kg5 {[%emt 0:00:03]} 73. Rc1 {[%emt 0:00:08]} f4 {[%emt 0:00:20]} (73... Rb2 $17 74. Kh1 Kf6) 74. gxf4+ {[%emt 0:00:06]} (74. Rc5+ $1 $11 Kf6 75. gxf4) 74... Kxf4 $15 {[%emt 0:00:02]} 75. Rf1+ {[%emt 0:00:05]} Kg5 {[%emt 0:00:04]} (75... Ke3 $15) 76. Rb1 {[%emt 0:00:02]} (76. Rf8 $1 $11) 76... Rg2+ {[%emt 0:00:04]} 77. Kh1 {[%emt 0:00:01]} Kh4 {[%emt 0:00:02]} (77... Rd2 $15) 78. Rc1 {[%emt 0:00:05] Weighted Error Value: White=0.19 (very precise) /Black=0.12 (very precise)} (78. Rb8 $1 $11) 1/2-1/2

[Event "4th Tata Steel India Rapid Open 2022"]
[Site "Kolkota"]
[Date "2022.11.29"]
[Round "3.3"]
[White "Abdusattorov, Nodirbek"]
[Black "Nakamura, Hikaru"]
[Result "1-0"]
[ECO "C65"]
[WhiteElo "2713"]
[BlackElo "2768"]
[Annotator "TA"]
[PlyCount "167"]
[EventDate "2022.11.29"]
[EventType "tourn"]
[EventCountry "IND"]
[SourceTitle "playchess.com"]
[Source "ChessBase"]
[SourceQuality "1"]
[TimeControl "900+10"]

{[%evp 9,167,5,16,18,23,26,25,11,12,13,16,0,0,0,0,0,0,0,0,0,0,0,4,8,37,0,0,0,0,-3,-10,-31,-7,-10,-8,-22,15,12,39,22,65,-12,-12,-13,-11,-18,-10,-9,0,0,0,-33,-31,-34,-13,-6,0,-12,0,-4,0,0,0,0,-4,0,0,-15,-13,-18,-5,-28,-13,-112,-6,-21,-21,-14,0,0,0,0,63,59,59,76,83,83,75,75,81,77,84,52,76,25,25,25,25,25,25,25,25,0,25,25,25,25,25,25,25,25,59,25,25,25,62,25,62,25,25,25,64,25,27,25,35,22,22,22,34,22,22,0,34,0,22,0,43,25,25,22,24,22,333,333,337,337,337,329,329,329,329,322,322,315,315,308,308,300]} 1. e4 {[%emt 0:00:02]} e5 {[%emt 0:00:00]} 2. Nf3 {[%emt 0:00:02]} Nc6 {[%emt 0:00:01]} 3. Bb5 {[%emt 0:00:04]} Nf6 {[%emt 0:00:03]} 4. d3 {[%emt 0:00:08]} Bc5 {[%emt 0:00:02]} 5. c3 {[%emt 0:00:02]} O-O {[%emt 0:00:53]} 6. O-O {[%emt 0:00:02] C65: Ruy Lopez: Berlin Defence (3...Nf6), unusual lines and 4 0-0 Bc5.} d5 {[%emt 0:00:04]} 7. exd5 {[%emt 0:00:15]} Qxd5 {[%emt 0:00:05][%cal Oc5f2]} 8. Bc4 {[%emt 0:00:02] White has an edge.} Qd8 {[%emt 0:00:01]} 9. b4 {[%emt 0:01:43]} Be7 {[%emt 0:00:45]} 10. Nbd2 {[%emt 0:00:22]} Bf5 {[%emt 0:00:18]} 11. Qc2 {[%emt 0:00:54]} a6 {[%emt 0:00:28] And now ...b5 would win.} 12. a4 {[%emt 0:00:37] Against b5} Nd5 {[%emt 0:00:02] [#]} 13. a5 $1 $146 {[%emt 0:02:50][%mdl 8] A top novelty.} ({Predecessor:} 13. Ne4 Bg4 14. Qa2 Nb6 15. Bb3 Bxf3 16. gxf3 Qd7 17. a5 Nc8 18. Qe2 Nd6 19. Kh1 Nb5 20. Bb2 Rad8 21. Rad1 Kh8 22. Rg1 h6 23. f4 exf4 24. Qh5 {1-0 (24) Durarbayli,V (2638)-Rodshtein,M (2596) Chennai 2022}) 13... b5 {[%emt 0:01:47]} 14. axb6 {[%emt 0:01:18]} Nxb6 {[%emt 0:00:02]} 15. Rd1 {[%emt 0:00:01]} (15. Bxa6 $2 Nb8 16. b5 (16. g4 $2 Rxa6 17. Rxa6 Bxd3 $19) 16... Bxd3 $19) (15. Rxa6 Rxa6 16. Bxa6 Nb8 $17) 15... Nxc4 {[%emt 0:02:21]} 16. Nxc4 {[%emt 0:00:02]} Bf6 {[%emt 0:00:02]} 17. Ne3 {[%emt 0:01:16]} (17. Na5 {is more complex.} Qd5 18. Bg5 Bg4 19. Bxf6 Bxf3 20. gxf3 gxf6 21. d4) 17... Be6 {[%emt 0:00:05]} 18. Nd2 {[%emt 0:00:39]} Be7 {[%emt 0:00:06]} 19. Re1 {[%emt 0:02:30]} Qd7 {[%emt 0:01:15]} 20. Qa4 {[%emt 0:00:14]} Rad8 {[%emt 0:00:59]} 21. Nf3 {[%emt 0:00:33]} f6 {[%emt 0:01:12]} 22. Bb2 {[%emt 0:00:35]} Bf7 {[%emt 0:02:36]} 23. Qxa6 {[%emt 0:00:23]} Nb8 {[%emt 0:00:15] Prevents b5.} 24. Qb7 {[%emt 0:00:18]} Qxd3 {[%emt 0:00:01]} 25. Rad1 {[%emt 0:00:11]} (25. Qxc7 $14 Rd7 26. Qa5) 25... Qa6 $11 {[%emt 0:00:20]} 26. Qxc7 {[%emt 0:01:18]} (26. Qxa6 {simplifies} Nxa6 27. Nf5 Bd6 28. N3h4) 26... Bd6 $1 {[%emt 0:00:01]} 27. Qa5 {[%emt 0:00:01]} Qxa5 {[%emt 0:02:29]} 28. bxa5 {[%emt 0:00:01]} Bc7 {[%emt 0:00:01]} 29. Ra1 {[%emt 0:00:33]} Nc6 {[%emt 0:00:26]} 30. a6 {[%emt 0:01:00]} (30. Ba3 $5 {[%cal Ra3f8]} Rfe8 31. a6 $11) 30... Ra8 {[%emt 0:00:01][%mdl 1024] Prevents a7. Black has compensation.} 31. Nd2 {[%emt 0:00:51]} Na5 {[%emt 0:00:11]} 32. Ba3 {[%emt 0:00:08]} Rfb8 {[%emt 0:01:33]} 33. Bb4 {[%emt 0:00:35]} Nc6 {[%emt 0:00:33]} (33... Rxa6 34. Ra3 Rba8 35. Rea1 $14) 34. Bc5 {[%emt 0:00:07]} Rb5 {[%emt 0:00:10]} 35. Ne4 {[%emt 0:00:04]} Bg6 {[%emt 0:00:40]} (35... Ra5 {simplifies} 36. Rxa5 Bxa5 37. Nc2 Bd5) 36. Nd5 {[%emt 0:00:41]} Bd8 {[%emt 0:00:04]} 37. c4 {[%emt 0:00:28]} Ra5 {[%emt 0:00:02]} 38. Rxa5 {[%emt 0:00:26]} Bxa5 {[%emt 0:00:03]} 39. Re2 {[%emt 0:00:03]} Rxa6 {[%emt 0:00:02] aiming for ...Bxe4.} (39... Bxe4 {simplifies} 40. Rxe4 Rxa6 41. g4 Bd8) 40. g4 {[%emt 0:00:02]} Bd8 {[%emt 0:00:19]} 41. h4 {[%emt 0:00:03] [#]} (41. Nd6 $11 {keeps the balance.}) 41... Nb8 {[%emt 0:01:15]} (41... Ra5 $1 $17 {White must now prevent ...Bxe4.} 42. Ndc3 h5) 42. Nd6 {[%emt 0:00:12]} Nd7 {[%emt 0:00:09]} 43. Bb4 {[%emt 0:00:01]} h5 {[%emt 0:00:01]} 44. Nb7 $36 {[%emt 0:00:06][%mdl 2048] White fights for an advantage. Pair of Knights!} Bb6 {[%emt 0:00:30]} 45. c5 {[%emt 0:00:13]} Bf7 {[%emt 0:00:04]} (45... Ra7 $1 $11) 46. Rd2 $1 $14 {[%emt 0:00:06] Hoping for Ne7+. White is much more active.} (46. Nxb6 Nxb6 47. Rc2 (47. cxb6 Rxb6 48. Rb2 Rxb7 $17) 47... Ra1+ 48. Kh2 Nd5 $17) 46... Nxc5 {[%emt 0:00:13]} 47. Nxc5 {[%emt 0:00:24]} ({But not} 47. Bxc5 Bxc5 48. Nxc5 Ra5 $11) 47... Bxc5 {[%emt 0:00:08]} 48. Bxc5 {[%emt 0:00:02]} hxg4 {[%emt 0:00:03]} 49. Ne3 {[%emt 0:00:09][%cal Og1h2]} Be6 {[%emt 0:00:02]} 50. Rd8+ {[%emt 0:00:08]} Kh7 {[%emt 0:00:03]} 51. Kg2 {[%emt 0:00:09]} Rc6 {[%emt 0:00:18]} 52. Rd6 {[%emt 0:00:13]} (52. Bd6 $16) 52... Rxd6 $1 $11 {[%emt 0:00:19]} 53. Bxd6 {[%emt 0:00:01]} Kg6 54. Kg3 {[%emt 0:00:30]} Kh5 {[%emt 0:00:01]} 55. Ng2 {[%emt 0:00:16]} Bd5 {[%emt 0:00:01]} 56. Ne3 {[%emt 0:00:01][%csl LRd5,LRg4]} Be6 {[%emt 0:00:01]} 57. Bc7 {[%emt 0:00:04]} Bd7 {[%emt 0:00:05]} 58. Nc4 {[%emt 0:00:07]} Be6 {[%emt 0:00:03]} 59. Nd2 {[%emt 0:00:21]} Bd5 {[%emt 0:00:07]} 60. Nb1 {[%emt 0:00:11]} Bb7 {[%emt 0:00:21]} 61. Bd6 {[%emt 0:00:08]} Be4 {[%emt 0:00:11]} 62. Nc3 {[%emt 0:00:06]} Bc6 {[%emt 0:00:00]} 63. Bc7 {[%emt 0:00:15]} Bd7 {[%emt 0:00:13]} 64. Ne4 {[%emt 0:00:10]} Bc6 {[%emt 0:00:03]} 65. Nc5 {[%emt 0:00:01]} Bd5 {[%emt 0:00:01]} 66. Bd6 {[%emt 0:00:02]} Bc6 {[%emt 0:01:11]} 67. Be7 {[%emt 0:00:46]} Bd5 {[%emt 0:00:22]} 68. Bd8 {[%emt 0:00:02]} Bc4 {[%emt 0:00:06]} 69. Ne4 {[%emt 0:00:04][%cal Od8f6]} Bd5 {[%emt 0:00:03]} 70. Nd6 {[%emt 0:00:02]} Be6 {[%emt 0:00:01] Against Nf5} 71. Ne4 {[%emt 0:00:15]} Bd5 {[%emt 0:00:08]} 72. Nc5 {[%emt 0:00:09]} Bc4 {[%emt 0:00:07]} 73. Be7 {[%emt 0:00:02]} Bd5 {[%emt 0:00:03]} 74. Bf8 {[%emt 0:00:21]} f5 {[%emt 0:00:12]} 75. Be7 {[%emt 0:00:01] Threatens to win with Nd3.} f4+ {[%emt 0:00:28]} 76. Kh2 {[%emt 0:00:01] Strongly threatening Nd3.} e4 $2 {[%emt 0:00:05][%mdl 8192] [#] Inhibits Nd3. Loses the game.} (76... Bc4 $11) 77. Bg5 $1 $18 {[%emt 0:00:32] White has a decisive advantage.} Bc6 {[%emt 0:00:33]} 78. Bxf4 {[%emt 0:00:02]} Kxh4 {[%emt 0:00:00]} 79. Bg3+ {[%emt 0:00:10]} Kg5 {[%emt 0:00:00]} 80. Ne6+ {[%emt 0:00:01]} Kf6 {[%emt 0:00:00]} 81. Nd4 {[%emt 0:00:01]} Bd7 {[%emt 0:00:04]} 82. Bd6 {[%emt 0:00:02]} Bc8 {[%emt 0:00:03]} 83. Kg3 {[%emt 0:00:02]} Kg5 {[%emt 0:00:00]} 84. Be7+ {[%emt 0:00:02] Weighted Error Value: White=0.11 (very precise) /Black=0.09 (flawless)} 1-0